bitfinex/quotes_SOLUSD_20230404
["timestamp","ask_amount","ask_price","bid_price","bid_amount"]
[1680636430940,20.0,20.909,20.892,17.0]
[1680636431135,20.0,20.909,20.893,20.0]
[1680636431336,20.0,20.909,20.894,17.0]
[1680636431833,20.0,20.909,20.892,52.60974322]
[1680636432035,20.0,20.908,20.892,52.60974322]
[1680636433342,20.0,20.908,20.893,17.0]
[1680636442042,27.26,20.9,20.893,17.0]
[1680636444540,27.26,20.9,20.889,118.6612]
[1680636445944,27.26,20.9,20.89,17.0]
[1680636454652,27.26,20.9,20.89,17.0]
[1680636461662,27.26,20.9,20.891,20.0]
[1680636461959,27.26,20.9,20.892,17.0]
[1680636462354,27.26,20.9,20.891,17.0]
[1680636462756,27.26,20.9,20.89,17.0]
[1680636482487,21.82,20.9,20.89,17.0]
[1680636493393,21.82,20.9,20.888,14.32162524]
[1680636493594,20.0,20.899,20.885,38.287883]
[1680636493794,20.0,20.899,20.886,17.0]
[1680636504119,20.0,20.899,20.885,52.79458608]
[1680636504325,20.0,20.897,20.885,38.287883]
[1680636505317,20.0,20.897,20.878,163.48314322]
[1680636505500,21.82,20.89,20.879,37.0]
[1680636506214,21.82,20.89,20.879,89.60974322]
[1680636506797,21.82,20.89,20.88,20.0]
[1680636506997,21.82,20.89,20.881,17.0]
[1680636507205,21.82,20.89,20.881,69.60974322]
[1680636508409,21.82,20.89,20.882,20.0]
[1680636508714,21.82,20.89,20.883,17.0]
[1680636509501,21.82,20.89,20.881,17.0]
[1680636510813,21.82,20.89,20.88,17.0]
[1680636512200,27.2,20.89,20.88,17.0]
[1680636513011,27.2,20.89,20.88,52.60974322]
[1680636514300,27.2,20.89,20.881,17.0]
[1680636514805,27.2,20.89,20.881,69.60974322]
[1680636515818,20.0,20.899,20.881,69.60974322]
[1680636516204,20.0,20.899,20.882,20.0]
[1680636516406,20.0,20.899,20.883,17.0]
[1680636516605,20.0,20.898,20.883,69.60974322]
[1680636522020,27.3,20.89,20.883,69.60974322]
[1680636526033,27.3,20.89,20.883,52.60974322]
[1680636529425,20.0,20.889,20.883,52.60974322]
[1680636529719,20.0,20.889,20.878,101.05429831]
[1680636529720,20.0,20.889,20.878,153.66404153]
[1680636529926,20.0,20.889,20.879,17.0]
[1680636530715,20.0,20.889,20.877,37.0]
[1680636531014,20.0,20.888,20.877,37.0]
[1680636535721,20.0,20.888,20.873,52.60974322]
[1680636535918,27.3,20.88,20.874,17.0]
[1680636538938,27.3,20.88,20.872,17.0]
[1680636539622,27.3,20.88,20.872,69.60974322]
[1680636540343,27.3,20.88,20.873,20.0]
[1680636540530,27.3,20.88,20.874,17.0]
[1680636540728,27.3,20.88,20.872,69.60974322]
[1680636540729,27.3,20.88,20.873,52.60974322]
[1680636540931,27.3,20.88,20.874,17.0]
[1680636543246,134.2082,20.889,20.874,17.0]
[1680636543545,134.2082,20.889,20.875,20.0]
[1680636543731,134.2082,20.889,20.876,17.0]
[1680636547745,20.0,20.889,20.877,20.0]
[1680636548049,20.0,20.889,20.878,17.0]
[1680636551543,20.0,20.889,20.876,17.0]
[1680636551738,20.0,20.889,20.875,17.0]
[1680636551940,20.0,20.889,20.873,52.60974322]
[1680636552339,20.0,20.889,20.87,131.0353]
[1680636553139,20.0,20.889,20.872,17.0]
[1680636553740,27.3,20.88,20.871,17.0]
[1680636554263,27.3,20.88,20.869,90.92713222]
[1680636554264,27.3,20.88,20.87,17.0]
[1680636558444,54.58,20.88,20.867,86.9253]
[1680636558648,20.0,20.879,20.867,86.9253]
[1680636561567,20.0,20.879,20.868,27.3]
[1680636562151,54.58,20.88,20.868,27.3]
[1680636562953,20.0,20.879,20.868,27.3]
[1680636563760,16.8957087,20.878,20.868,27.3]
[1680636564067,20.0,20.877,20.868,27.3]
[1680636564369,27.19062694,20.877,20.868,27.3]
[1680636564657,27.19062694,20.876,20.868,15.7256]
[1680636564877,20.0,20.875,20.868,15.7256]
[1680636565162,20.0,20.874,20.856,90.1448]
[1680636565344,54.6,20.87,20.856,90.1448]
[1680636565748,20.0,20.869,20.856,90.1448]
[1680636566472,54.6,20.87,20.856,90.1448]
[1680636566647,20.0,20.869,20.857,17.0]
[1680636569157,20.0,20.869,20.856,90.1448]
[1680636569672,54.6,20.87,20.856,90.1448]
[1680636570276,53.2,20.87,20.856,90.1448]
[1680636570458,53.2,20.87,20.857,17.0]
[1680636576478,20.0,20.869,20.856,90.1448]
[1680636577087,53.2,20.87,20.856,90.1448]
[1680636579391,53.2,20.87,20.857,17.0]
[1680636581374,53.2,20.87,20.856,90.1448]
[1680636583770,20.0,20.869,20.856,90.1448]
[1680636585769,53.2,20.87,20.856,90.1448]
[1680636587292,53.2,20.87,20.857,17.0]
[1680636588070,53.2,20.87,20.857,37.0]
[1680636589187,53.2,20.87,20.857,17.0]
[1680636598375,53.2,20.87,20.856,90.1448]
[1680636601397,20.0,20.869,20.856,90.1448]
[1680636602493,53.2,20.87,20.856,90.1448]
[1680636602877,53.2,20.87,20.857,17.0]
[1680636603283,53.2,20.87,20.858,20.0]
[1680636605491,53.2,20.87,20.859,17.0]
[1680636606090,53.2,20.87,20.86,20.0]
[1680636609578,53.2,20.87,20.861,17.0]
[1680636611978,27.3,20.87,20.861,17.0]
[1680636612902,27.3,20.87,20.862,20.0]
[1680636613199,27.3,20.87,20.863,17.0]
[1680636615096,27.3,20.87,20.864,20.0]
[1680636615294,27.3,20.87,20.865,17.0]
[1680636616495,27.3,20.87,20.862,20.0]
[1680636618503,27.3,20.87,20.863,17.0]
[1680636619095,27.3,20.87,20.864,20.0]
[1680636619310,27.3,20.87,20.865,17.0]
[1680636622689,27.3,20.87,20.863,17.0]
[1680636622900,27.3,20.87,20.86,20.0]
[1680636623101,27.3,20.87,20.85,14.18278294]
[1680636625592,27.3,20.87,20.859,17.0]
[1680636625902,27.3,20.87,20.86,20.0]
[1680636626099,27.3,20.87,20.861,17.0]
[1680636626602,27.3,20.87,20.862,20.0]
[1680636627504,27.3,20.87,20.863,17.0]
[1680636632110,27.3,20.87,20.861,17.0]
[1680636634489,27.3,20.87,20.862,20.0]
[1680636634693,27.3,20.87,20.863,17.0]
[1680636635188,27.3,20.87,20.852,124.54802694]
[1680636635189,27.3,20.87,20.852,117.3574]
[1680636635388,61.79062694,20.87,20.852,117.3574]
[1680636635604,27.3,20.86,20.852,117.3574]
[1680636636794,27.3,20.86,20.853,20.0]
[1680636637310,27.3,20.86,20.854,17.0]
[1680636637520,54.6,20.87,20.854,17.0]
[1680636638009,54.6,20.87,20.855,20.0]
[1680636638210,54.6,20.87,20.856,17.0]
[1680636639718,54.6,20.87,20.854,17.0]
[1680636640618,54.6,20.87,20.855,20.0]
[1680636640814,54.6,20.87,20.856,17.0]
[1680636642017,54.6,20.87,20.854,17.0]
[1680636642706,54.6,20.87,20.855,20.0]
[1680636642906,54.6,20.87,20.856,17.0]
[1680636651735,54.6,20.87,20.857,20.0]
[1680636652032,27.3,20.87,20.858,17.0]
[1680636652832,27.3,20.87,20.859,20.0]
[1680636653041,27.3,20.87,20.86,17.0]
[1680636657431,27.3,20.87,20.861,20.0]
[1680636657630,27.3,20.87,20.862,17.0]
[1680636662132,20.0,20.875,20.862,17.0]
[1680636662332,20.0,20.876,20.862,17.0]
[1680636662931,114.4381,20.878,20.862,17.0]
[1680636663630,114.4381,20.878,20.863,20.0]
[1680636663836,114.4381,20.878,20.864,17.0]
[1680636665925,20.0,20.879,20.864,17.0]
[1680636666624,20.0,20.879,20.864,24.19062694]
[1680636667524,20.0,20.879,20.865,20.0]
[1680636667742,20.0,20.879,20.866,17.0]
[1680636668044,20.0,20.879,20.867,20.0]
[1680636668241,20.0,20.879,20.868,17.0]
[1680636669050,27.3,20.88,20.868,17.0]
[1680636678046,27.3,20.88,20.861,41.30348923]
[1680636678248,27.3,20.87,20.861,14.11286229]
[1680636678455,27.3,20.87,20.85,440.58278294]
[1680636678456,27.3,20.87,20.85,413.28278294]
[1680636678638,27.3,20.87,20.859,20.0]
[1680636679232,27.3,20.87,20.86,20.0]
[1680636680142,27.3,20.87,20.859,20.0]
[1680636681361,27.3,20.87,20.86,17.0]
[1680636682460,27.3,20.87,20.861,20.0]
[1680636682667,27.3,20.87,20.862,17.0]
[1680636684961,27.3,20.87,20.861,17.0]
[1680636685458,27.3,20.87,20.86,17.0]
[1680636688550,27.3,20.87,20.861,20.0]
[1680636688754,27.3,20.87,20.862,17.0]
[1680636690767,27.3,20.87,20.863,20.0]
[1680636691065,113.8334,20.876,20.864,17.0]
[1680636691248,113.8334,20.876,20.865,20.0]
[1680636691448,113.8334,20.876,20.866,17.0]
[1680636694161,110.574,20.878,20.866,17.0]
[1680636697265,110.574,20.878,20.867,20.0]
[1680636697569,110.574,20.878,20.869,20.0]
[1680636698068,110.574,20.878,20.87,17.0]
[1680636698666,110.574,20.878,20.87,17.0]
[1680636700863,110.574,20.878,20.868,17.0]
[1680636701764,110.574,20.878,20.863,20.0]
[1680636703361,110.574,20.878,20.864,17.0]
[1680636707480,110.574,20.878,20.865,20.0]
[1680636707776,110.574,20.878,20.866,17.0]
[1680636709082,110.574,20.878,20.867,20.0]
[1680636709472,110.574,20.878,20.868,17.0]
[1680636710672,110.574,20.878,20.866,17.0]
[1680636712385,110.574,20.878,20.867,20.0]
[1680636712681,110.574,20.878,20.868,17.0]
[1680636722685,110.574,20.878,20.865,20.0]
[1680636723881,110.574,20.878,20.866,17.0]
[1680636724082,110.574,20.878,20.867,20.0]
[1680636724283,110.574,20.878,20.868,17.0]
[1680636724779,110.574,20.878,20.866,17.0]
[1680636727881,110.574,20.878,20.867,20.0]
[1680636728077,110.574,20.878,20.868,17.0]
[1680636728291,54.6,20.88,20.868,17.0]
[1680636728500,113.7752,20.886,20.869,20.0]
[1680636728685,98.3542,20.889,20.869,99.57603869]
[1680636728998,98.3542,20.889,20.87,95.55106091]
[1680636729177,98.3542,20.889,20.872,23.954]
[1680636729382,98.3542,20.889,20.873,17.0]
[1680636729594,98.3542,20.889,20.873,24.19062694]
[1680636729894,98.3542,20.889,20.874,20.0]
[1680636730099,98.3542,20.889,20.875,17.0]
[1680636730598,98.3542,20.889,20.876,20.0]
[1680636730800,98.3542,20.889,20.877,17.0]
[1680636731494,98.3542,20.889,20.878,20.0]
[1680636731697,98.3542,20.889,20.879,17.0]
[1680636734409,98.3542,20.889,20.877,17.0]
[1680636735198,98.3542,20.889,20.875,17.0]
[1680636737388,98.3542,20.889,20.874,20.0]
[1680636738690,98.3542,20.889,20.87,7.19062694]
[1680636738894,98.3542,20.889,20.873,17.0]
[1680636739409,98.3542,20.889,20.874,20.0]
[1680636739707,98.3542,20.889,20.875,17.0]
[1680636740406,98.3542,20.889,20.872,71.36043397]
[1680636740586,20.0,20.888,20.87,7.19062694]
[1680636740792,119.9228,20.887,20.87,7.19062694]
[1680636740990,119.9228,20.887,20.871,20.0]
[1680636741809,119.9228,20.887,20.872,17.0]
[1680636742000,27.3,20.88,20.872,17.0]
[1680636744000,27.3,20.88,20.873,20.0]
[1680636744208,119.9228,20.887,20.874,17.0]
[1680636744702,119.9228,20.887,20.875,20.0]
[1680636744906,119.9228,20.887,20.876,17.0]
[1680636753613,119.9228,20.887,20.875,17.0]
[1680636760513,119.9228,20.887,20.876,20.0]
[1680636760705,119.9228,20.887,20.877,17.0]
[1680636761105,119.9228,20.887,20.878,20.0]
[1680636761310,27.15,20.89,20.879,17.0]
[1680636767417,27.15,20.89,20.88,20.0]
[1680636767608,27.15,20.89,20.881,17.0]
[1680636768611,27.15,20.89,20.879,17.0]
[1680636770817,27.15,20.89,20.877,17.0]
[1680636771031,27.15,20.89,20.878,20.0]
[1680636771215,27.15,20.89,20.879,17.0]
[1680636783119,132.6127,20.899,20.879,17.0]
[1680636783322,112.6127,20.899,20.881,23.944]
[1680636783537,112.6127,20.899,20.882,17.0]
[1680636783733,112.6127,20.899,20.885,23.94]
[1680636783942,112.6127,20.899,20.886,17.0]
[1680636784130,112.6127,20.899,20.887,20.0]
[1680636784325,112.6127,20.899,20.888,17.0]
[1680636785024,112.6127,20.899,20.886,17.0]
[1680636785626,112.6127,20.899,20.887,20.0]
[1680636785833,112.6127,20.899,20.888,17.0]
[1680636791937,112.6127,20.899,20.888,16.92417236]
[1680636792138,112.6127,20.899,20.889,20.0]
[1680636793130,131.2723,20.9,20.889,20.0]
[1680636793348,20.0,20.899,20.889,20.0]
[1680636794053,20.0,20.899,20.89,17.0]
[1680636795253,20.0,20.899,20.887,20.0]
[1680636795437,20.0,20.899,20.88,20.0]
[1680636795637,20.0,20.899,20.882,20.0]
[1680636796645,20.0,20.899,20.884,17.0]
[1680636797856,20.0,20.899,20.882,20.0]
[1680636799453,20.0,20.899,20.884,17.0]
[1680636808858,20.0,20.898,20.884,17.0]
[1680636809053,20.0,20.898,20.882,17.0]
[1680636809258,20.0,20.898,20.88,20.0]
[1680636809259,20.0,20.898,20.881,17.0]
[1680636809958,20.0,20.898,20.879,116.03412694]
[1680636810259,20.0,20.898,20.88,17.0]
[1680636810656,20.0,20.898,20.88,37.0]
[1680636811057,40.0,20.899,20.88,37.0]
[1680636811266,20.0,20.899,20.88,37.0]
[1680636811453,20.0,20.899,20.88,105.30937203]
[1680636811650,20.0,20.899,20.881,20.0]
[1680636811859,20.0,20.899,20.883,20.0]
[1680636812048,20.0,20.899,20.884,17.0]
[1680636814859,20.0,20.899,20.882,17.0]
[1680636816664,20.0,20.899,20.883,20.0]
[1680636816864,20.0,20.899,20.884,17.0]
[1680636832262,20.0,20.899,20.87,456.65627572]
[1680636832263,27.3,20.89,20.87,456.65627572]
[1680636832658,20.0,20.889,20.874,41.21903045]
[1680636833175,27.3,20.89,20.874,41.21903045]
[1680636833676,27.3,20.89,20.879,17.0]
[1680636835571,27.3,20.89,20.878,113.8524]
[1680636835758,20.0,20.889,20.878,113.8524]
[1680636835966,20.0,20.889,20.879,17.0]
[1680636839887,19.91968201,20.889,20.879,17.0]
[1680636842580,19.91968201,20.889,20.88,20.0]
[1680636842769,19.91968201,20.889,20.881,17.0]
[1680636844880,27.28,20.89,20.881,17.0]
[1680636845082,23.924,20.899,20.881,17.0]
[1680636845283,23.924,20.899,20.882,20.0]
[1680636845484,23.924,20.899,20.883,17.0]
[1680636847472,23.924,20.899,20.884,20.0]
[1680636847674,23.924,20.899,20.885,17.0]
[1680636849875,23.924,20.899,20.883,17.0]
[1680636852702,170.9937,20.9,20.883,17.0]
[1680636852883,20.0,20.899,20.883,17.0]
[1680636854073,43.924,20.899,20.883,17.0]
[1680636854392,20.0,20.898,20.881,17.0]
[1680636860884,20.0,20.898,20.88,17.0]
[1680636862381,27.3,20.89,20.879,118.05402694]
[1680636863796,27.3,20.89,20.88,17.0]
[1680636870701,27.3,20.89,20.881,20.0]
[1680636871001,27.3,20.89,20.882,17.0]
[1680636883015,20.0,20.899,20.883,20.0]
[1680636883392,20.0,20.899,20.884,17.0]
[1680636885502,20.0,20.899,20.882,17.0]
[1680636885908,20.0,20.898,20.882,17.0]
[1680636886305,27.12,20.89,20.863,25.05906202]
[1680636886513,27.12,20.89,20.872,57.55627572]
[1680636886716,27.12,20.89,20.876,7.19062694]
[1680636887923,20.0,20.888,20.878,113.8524]
[1680636888517,20.0,20.889,20.878,113.8524]
[1680636888703,20.0,20.889,20.871,85.07474509]
[1680636888901,20.0,20.889,20.872,20.0]
[1680636889105,20.0,20.889,20.873,17.0]
[1680636890200,129.9246,20.889,20.873,17.0]
[1680636890501,27.2,20.88,20.873,17.0]
[1680636903823,27.2,20.88,20.874,20.0]
[1680636904120,248.6484,20.889,20.875,17.0]
[1680636907811,248.6484,20.889,20.876,20.0]
[1680636908120,248.6484,20.889,20.877,17.0]
[1680636910010,248.6484,20.889,20.875,17.0]
[1680636910625,20.0,20.888,20.874,17.0]
[1680636910922,248.6484,20.889,20.874,17.0]
[1680636911120,248.6484,20.889,20.875,20.0]
[1680636911413,248.6484,20.889,20.876,17.0]
[1680636911822,248.6484,20.889,20.875,17.0]
[1680636917829,248.6484,20.889,20.876,20.0]
[1680636918125,248.6484,20.889,20.877,17.0]
[1680636919722,248.6484,20.889,20.875,17.0]
[1680636922214,248.6484,20.889,20.876,20.0]
[1680636922541,248.6484,20.889,20.877,17.0]
[1680636923525,228.6484,20.889,20.877,17.0]
[1680636924029,20.0,20.899,20.878,47.19062694]
[1680636924230,20.0,20.899,20.879,131.3764]
[1680636924529,20.0,20.899,20.881,20.0]
[1680636924743,20.0,20.899,20.882,17.0]
[1680636924937,20.0,20.899,20.882,85.30937203]
[1680636925231,20.0,20.899,20.883,68.30937203]
[1680636925433,20.0,20.899,20.884,17.0]
[1680636925637,20.0,20.899,20.885,20.0]
[1680636925812,20.0,20.899,20.886,17.0]
[1680636926018,20.0,20.899,20.887,20.0]
[1680636926218,20.0,20.899,20.888,17.0]
[1680636927219,27.3,20.9,20.888,17.0]
[1680636927524,20.0,20.899,20.888,17.0]
[1680636935133,20.0,20.899,20.889,20.0]
[1680636935323,20.0,20.899,20.89,17.0]
[1680636939534,20.0,20.899,20.885,20.0]
[1680636939838,20.0,20.899,20.882,27.19062694]
[1680636941143,20.0,20.899,20.883,17.0]
[1680636943936,20.0,20.899,20.883,17.0]
[1680636944347,20.0,20.898,20.881,17.0]
[1680636946228,40.0,20.899,20.881,17.0]
[1680636947048,20.0,20.899,20.881,17.0]
[1680636948646,20.0,20.899,20.885,23.939]
[1680636948849,20.0,20.899,20.886,37.0]
[1680636949051,20.0,20.899,20.886,105.30937203]
[1680636949247,20.0,20.899,20.887,68.30937203]
[1680636949460,20.0,20.899,20.889,20.0]
[1680636949835,20.0,20.899,20.89,17.0]
[1680636950044,20.0,20.899,20.891,20.0]
[1680636950249,20.0,20.899,20.892,17.0]
[1680636963437,20.0,20.899,20.888,20.0]
[1680636963736,20.0,20.899,20.884,61.11874509]
[1680636963936,20.0,20.899,20.885,20.0]
[1680636964873,20.0,20.899,20.886,17.0]
[1680636966745,20.0,20.899,20.885,17.0]
[1680636970964,20.0,20.898,20.885,17.0]
[1680636972357,20.0,20.898,20.88,27.19062694]
[1680636972851,20.0,20.898,20.88,7.19062694]
[1680636973363,115.891,20.897,20.88,7.19062694]
[1680636973753,27.3,20.89,20.879,61.11874509]
[1680636973957,20.0,20.888,20.879,61.11874509]
[1680636974266,20.0,20.889,20.879,61.11874509]
[1680636974649,20.0,20.889,20.871,23.956]
[1680636974860,20.0,20.889,20.879,17.0]
[1680636986876,20.0,20.889,20.878,118.0941]
[1680636987068,43.938,20.888,20.867,109.4051]
[1680636987258,54.5,20.88,20.867,109.4051]
[1680636989582,54.5,20.88,20.868,17.0]
[1680636989764,20.0,20.879,20.868,17.0]
[1680636989955,20.0,20.879,20.87,27.3]
[1680636990153,54.5,20.88,20.871,17.0]
[1680637004284,54.5,20.88,20.869,17.0]
[1680637004593,27.3,20.88,20.869,17.0]
[1680637009895,27.3,20.88,20.868,17.0]
[1680637013078,112.629,20.888,20.868,24.19062694]
[1680637013278,142.245,20.9,20.869,50.80279197]
[1680637013484,114.945,20.9,20.87,91.38]
[1680637013683,169.305,20.9,20.879,23.947]
[1680637013887,169.305,20.9,20.88,17.0]
[1680637014088,54.36,20.9,20.88,140.65778663]
[1680637014289,27.12,20.9,20.883,23.942]
[1680637014483,27.12,20.9,20.885,20.0]
[1680637014889,27.12,20.9,20.886,140.65778663]
[1680637015489,20.0,20.899,20.887,143.65778663]
[1680637015678,20.0,20.899,20.888,17.0]
[1680637015885,20.0,20.899,20.889,20.0]
[1680637016079,20.0,20.899,20.89,17.0]
[1680637017188,20.0,20.899,20.889,20.0]
[1680637017397,20.0,20.899,20.89,17.0]
[1680637021085,20.0,20.899,20.888,17.0]
[1680637021489,20.0,20.892,20.888,17.0]
[1680637034918,27.17,20.9,20.885,14.05881324]
[1680637035219,27.17,20.9,20.881,116.1523816]
[1680637035421,27.17,20.9,20.882,20.0]
[1680637036428,20.0,20.899,20.882,20.0]
[1680637036720,27.17,20.9,20.882,20.0]
[1680637037509,27.17,20.9,20.883,17.0]
[1680637038512,40.0,20.899,20.883,17.0]
[1680637038712,40.0,20.899,20.883,20.0]
[1680637038919,40.0,20.899,20.884,17.0]
[1680637039524,20.0,20.899,20.884,17.0]
[1680637040624,20.0,20.899,20.883,17.0]
[1680637040625,20.0,20.898,20.883,17.0]
[1680637041222,40.0,20.899,20.883,17.0]
[1680637041418,20.0,20.899,20.883,17.0]
[1680637041806,140.3038,20.9,20.883,17.0]
[1680637042319,167.5138,20.9,20.883,24.19062694]
[1680637042935,20.0,20.899,20.883,24.19062694]
[1680637043618,167.5138,20.9,20.883,24.19062694]
[1680637043819,167.5138,20.9,20.884,20.0]
[1680637044117,167.5138,20.9,20.885,17.0]
[1680637045332,20.0,20.899,20.885,17.0]
[1680637045520,20.0,20.899,20.884,17.0]
[1680637046715,167.5138,20.9,20.884,17.0]
[1680637047923,20.0,20.899,20.884,17.0]
[1680637048435,167.5138,20.9,20.884,17.0]
[1680637050333,20.0,20.899,20.884,17.0]
[1680637051929,167.5138,20.9,20.884,17.0]
[1680637052841,20.0,20.899,20.884,17.0]
[1680637053443,167.5138,20.9,20.884,17.0]
[1680637055636,167.5138,20.9,20.884,24.19062694]
[1680637055944,140.3438,20.9,20.884,24.19062694]
[1680637056144,140.3438,20.9,20.885,20.0]
[1680637056349,140.3438,20.9,20.886,17.0]
[1680637056947,140.3438,20.9,20.887,20.0]
[1680637057163,140.3438,20.9,20.888,17.0]
[1680637059146,140.3438,20.9,20.886,17.0]
[1680637060835,140.3438,20.9,20.887,20.0]
[1680637061042,140.3438,20.9,20.888,17.0]
[1680637063551,20.0,20.899,20.888,17.0]
[1680637073961,20.0,20.899,20.886,17.0]
[1680637076264,20.0,20.899,20.885,7.19062694]
[1680637076765,20.0,20.899,20.882,20.0]
[1680637077065,20.0,20.899,20.882,27.19062694]
[1680637077866,20.0,20.899,20.883,17.0]
[1680637078368,20.0,20.899,20.883,24.19062694]
[1680637078861,20.0,20.899,20.884,20.0]
[1680637079163,20.0,20.899,20.885,17.0]
[1680637082971,20.0,20.898,20.885,17.0]
[1680637085173,20.0,20.898,20.883,17.0]
[1680637085364,20.0,20.898,20.882,17.0]
[1680637085766,20.0,20.898,20.881,17.0]
[1680637086075,136.0626,20.898,20.881,17.0]
[1680637087373,136.0626,20.898,20.881,24.19062694]
[1680637090274,116.0626,20.898,20.881,24.19062694]
[1680637092074,27.26,20.89,20.881,24.19062694]
[1680637092473,27.26,20.89,20.881,7.19062694]
[1680637092977,27.26,20.89,20.88,14.68782469]
[1680637093176,27.26,20.89,20.879,7.19062694]
[1680637094162,27.26,20.89,20.88,17.0]
[1680637097777,27.26,20.89,20.88,24.19062694]
[1680637102582,27.26,20.89,20.881,20.0]
[1680637102784,27.26,20.89,20.882,17.0]
[1680637103885,27.26,20.89,20.881,17.0]
[1680637112180,21.83,20.89,20.881,17.0]
[1680637114787,21.83,20.89,20.879,17.0]
[1680637115292,21.83,20.89,20.88,20.0]
[1680637115584,21.83,20.89,20.881,17.0]
[1680637116192,21.83,20.89,20.88,17.0]
[1680637116893,21.83,20.89,20.879,17.0]
[1680637118899,21.83,20.89,20.88,20.0]
[1680637119085,21.83,20.89,20.881,17.0]
[1680637119280,21.83,20.89,20.879,17.0]
[1680637119889,21.83,20.89,20.88,20.0]
[1680637120088,21.83,20.89,20.881,17.0]
[1680637120490,21.83,20.89,20.88,17.0]
[1680637132700,21.83,20.89,20.88,24.19062694]
[1680637132907,21.83,20.89,20.88,86.36235785]
[1680637133120,21.83,20.89,20.881,53.99525299]
[1680637133292,21.83,20.89,20.882,37.0]
[1680637133498,21.83,20.89,20.882,44.19062694]
[1680637135404,21.83,20.89,20.882,24.19062694]
[1680637135709,21.83,20.89,20.883,20.0]
[1680637135899,21.83,20.89,20.884,17.0]
[1680637137317,21.83,20.89,20.883,17.0]
[1680637140818,21.83,20.89,20.884,20.0]
[1680637141018,21.83,20.89,20.883,17.0]
[1680637141019,21.83,20.89,20.885,17.0]
[1680637141198,20.0,20.897,20.883,17.0]
[1680637141403,21.83,20.89,20.883,17.0]
[1680637147928,21.83,20.89,20.884,20.0]
[1680637148127,21.83,20.89,20.885,17.0]
[1680637148419,116.0626,20.898,20.885,17.0]
[1680637156919,20.0,20.897,20.883,17.0]
[1680637157121,20.0,20.897,20.882,17.0]
[1680637157626,20.0,20.897,20.88,17.0]
[1680637158430,20.0,20.897,20.88,24.19062694]
[1680637159937,116.0626,20.898,20.881,20.0]